Cogmind - Beta 17 @@@ ROGUE MODE // 2026.08.23 @ 14:38:56 Player: Fedop Result: Destroyed by Y-45 Defender with Heavy Assault Rifle Performance ------------- Evolutions (2) 1000 Regions Visited (5) 1000 Robots Destroyed (5) 25 Value Destroyed (150) 150 Prototype IDs (2) 40 Alien Tech Used (0) 0 Bonus (470) 470 TOTAL SCORE: 2685 Bonus ------- Pacifist 470 Cogmind --------- Core Integrity 0/550 Matter 290/300 Energy 99/100 System Corruption 4% Temperature Cool (9) Movement Core (50) Location -8/Storage Parts ------- > --- POWER (1) -------- (None) > --- PROPULSION (2) --- (None) > --- UTILITY (6) ------ Improved Signal Interpreter > --- WEAPON (2) ------- (None) > --- INVENTORY (5) ---- Light Ion Engine Small Storage Unit Improved Datajack Peak State ------------ > --- POWER ------------ Deuterium Engine > --- PROPULSION ------- VSS Leg > --- UTILITY ---------- Small Storage Unit Signal Interpreter > --- WEAPON ----------- Mace > --- INVENTORY -------- Ion Engine Light Ion Engine Cryofiber Web [Rating: 10] Favorites ----------- Power Light Ion Engine Engine Light Ion Engine Propulsion Aluminum Leg Leg Aluminum Leg Hover Unit Backup Propulsion I Utility Signal Interpreter Storage Small Storage Unit Processor Signal Interpreter Protection Light Armor Plating Weapon Mace Energy Gun Backup Laser I Impact Weapon Mace Special Melee Weapon Improved Datajack Build | -11 -10 -9 -9 -8 -8 ------- Run | Yrd Mat Mat Min Mat Sto Slots Evolved 4 | . . 2 . 2 . Power . | . . . . . . Propulsion . | . . . . . . Utility 4 | . . 2 . 2 . Weapon . | . . . . . . Parts Attached 16 | 4 3 1 . 7 1 Power 3 | 1 . . . 1 1 Engine 3 | 1 . . . 1 1 Core . | . . . . . . Reactor . | . . . . . . Propulsion 3 | 2 . . . 1 . Treads . | . . . . . . Leg 3 | 2 . . . 1 . Wheel . | . . . . . . Hover . | . . . . . . Flight . | . . . . . . Utility 8 | 1 3 1 . 3 . Device . | . . . . . . Storage 1 | 1 . . . . . Processor 2 | . 1 . . 1 . Hackware . | . . . . . . Protection 5 | . 2 1 . 2 . Artifact . | . . . . . . Weapon 2 | . . . . 2 . Energy Gun . | . . . . . . Energy Cannon . | . . . . . . Ballistic Gun . | . . . . . . Ballistic Cannon . | . . . . . . Launcher . | . . . . . . Special Weapon . | . . . . . . Impact Weapon 1 | . . . . 1 . Slashing Weapon . | . . . . . . Piercing Weapon . | . . . . . . Special Melee Weapon 1 | . . . . 1 . Unidentified Prototypes . | . . . . . . Parts Lost 14 | . 2 2 1 4 5 Power 2 | . . . . . 2 Propulsion 5 | . 1 1 . 1 2 Utility 6 | . 1 1 1 2 1 Weapon 1 | . . . . 1 . Highest Loss Streak 3 | . 2 1 1 3 2 To Critical Strikes . | . . . . . . Average Backups 3 | . 2 3 3 4 3 Power 2 | . 1 2 2 2 1 Propulsion . | . . . . . . Utility 1 | . 1 1 1 1 1 Weapon . | . . . . . . Tool/Special . | . . . . . . Unused Backups 1 | . . . . 1 . Power . | . . . . . . Propulsion . | . . . . . . Utility 1 | . . . . 1 . Weapon . | . . . . . . Tool/Special . | . . . . . . Average Slot Usage (%) 28 | . 50 29 22 20 26 Engine 1 | . 5 . . . 1 Leg 6 | . 25 7 . 3 . Hover 1 | . . . . . 10 Storage 3 | . 5 . . 5 . Processor 7 | . 7 11 11 5 9 Protection 5 | . 5 11 11 1 4 Impact Weapon 1 | . . . . 3 . Peak Build Rating 10 | 4 4 3 2 10 8 Average Rating 3 | 3 3 2 1 4 4 On Entrance 2 | . 4 3 2 1 4 Avg Prop Armor Cover (%) 16 | . 22 14 . 24 . Naked Turns 30 | . . . . 30 . Heaviest Build 16 | 8 8 3 3 16 6 Greatest Support 20 | 20 20 3 3 12 12 Greatest Overweight (x) 2 | 2 . . . 1 1 Average Overweight (x) . | . . . . . . Largest Inventory Capacity 8 | 8 8 5 5 8 5 Average Capacity 6 | 7 6 5 5 6 5 Most Carried 5 | 1 5 5 3 5 5 Average Carried 3 | . 3 3 3 4 3 Final Capacity 8 | 8 5 5 5 5 5 Final Carried 4 | 1 4 3 3 4 3 Class Distribution -------------------- 100% | Mutant Dominant Class ---------------- Mutant | -10/Materials Mutant | -9/Materials Mutant | -9/Mines Mutant | -8/Materials Mutant | -8/Storage Resources | -11 -10 -9 -9 -8 -8 ----------- Run | Yrd Mat Mat Min Mat Sto Matter Collected 211 | 99 . . . 112 . Remotely . | . . . . . . Salvage Created 152 | . . . . 152 . Parts 2 | . . . . 2 . Haulers Intercepted . | . . . . . . Recyclers Shooed . | . . . . . . Parts Field Recycled . | . . . . . . Retrieved Matter . | . . . . . . Parts Self-Destructed . | . . . . . . Prevented . | . . . . . . Parts Restored . | . . . . . . Kills | -11 -10 -9 -9 -8 -8 ------- Run | Yrd Mat Mat Min Mat Sto Combat Hostiles Destroyed 5 | . . . . 5 . Melee 1 | . . . . 1 . Classes Destroyed 3 | . . . . 3 . Swarmer 2 | . . . . 2 . Grunt 2 | . . . . 2 . Brawler 1 | . . . . 1 . Best Kill Streak 3 | . . . . 3 . Combat Bots Only 3 | . . . . 3 . Max Kills in Single Turn 1 | . . . . 1 . Gunslinging . | . . . . . . Exploded . | . . . . . . Melee 1 | . . . . 1 . Uniques/NPCs Destroyed . | . . . . . . Combat | -11 -10 -9 -9 -8 -8 -------- Run | Yrd Mat Mat Min Mat Sto Hostile Shots Fired 256 | . 81 34 16 88 37 Missed 89 | . 28 16 6 28 11 Hits 167 | . 53 18 10 60 26 Melee 10 | . . . . 10 . Projectile 157 | . 53 18 10 50 26 Critical Strikes 6 | . . . . 5 1 Damage Taken 2050 | . 459 166 119 864 442 Core 826 | . 125 68 72 318 243 Absorbed by Shields . | . . . . . . Core Remaining (%) 71 | 100 50 . 65 . . Volleys Fired . | . . . . . . Largest . | . . . . . . Hottest . | . . . . . . Shots Fired . | . . . . . . Gun . | . . . . . . Cannon . | . . . . . . Launcher . | . . . . . . Special . | . . . . . . Kinetic . | . . . . . . Thermal . | . . . . . . Explosive . | . . . . . . Electromagnetic . | . . . . . . Robot Hit Streak . | . . . . . . Robot Miss Streak . | . . . . . . Penetration Max . | . . . . . . Secondary Targets . | . . . . . . Shots Hit Robots 23 | . . . . 23 . Core Hits 7 | . 6 . . 1 . Critical Kills . | . . . . . . Critical Parts Destroyed 3 | . . . . 3 . Critical Strikes 4 | . . . . 4 . Smash 4 | . . . . 4 . Melee Attacks 32 | . . . . 32 . Impact 27 | . . . . 27 . Slashing . | . . . . . . Piercing . | . . . . . . Sneak Attacks 4 | . . . . 4 . Combat Hostiles . | . . . . . . Follow-up Attacks . | . . . . . . Damage Inflicted 579 | . 32 . 19 528 . Guns . | . . . . . . Cannons . | . . . . . . Explosions . | . . . . . . Melee 528 | . . . . 528 . Ramming 51 | . 32 . 19 . . Kinetic . | . . . . . . Thermal . | . . . . . . Explosive . | . . . . . . Electromagnetic . | . . . . . . Impact 528 | . . . . 528 . Slashing . | . . . . . . Piercing . | . . . . . . Highest Corruption 4 | . . . . 4 4 Average Corruption 4 | . . . . 4 4 Corruption Purged . | . . . . . . Corruption Blocked . | . . . . . . Effects 15 | . . . . 8 7 Message Errors 7 | . . . . 4 3 Matter Fused 2 | . . . . 2 . Heat Flow Errors 2 | . . . . 1 1 Energy Discharges 2 | . . . . . 2 Data Loss (minor) 1 | . . . . 1 . Data Loss (major) 1 | . . . . . 1 Overload Shots . | . . . . . . Overflow Damage 114 | . . . . 114 . Projectiles . | . . . . . . Explosions . | . . . . . . Melee 114 | . . . . 114 . Knockbacks 1 | . . . . 1 . Impact 1 | . . . . 1 . Kinetic . | . . . . . . Secondary . | . . . . . . Self-Inflicted Damage 9 | . . . 9 . . Shots . | . . . . . . Rammed 6 | . . . 6 . . Targets Rammed 34 | . 28 . 6 . . Kicked 28 | . 28 . . . . Crushed . | . . . . . . Highest Temperature 260 | . . . . 126 260 Average Temperature 110 | . . . . 77 127 Received Heat Transfer 588 | . 78 42 27 225 216 Siege Activations . | . . . . . . Martial Activations . | . . . . . . Shielding Activations . | . . . . . . Robots Disrupted . | . . . . . . Combat Hostiles . | . . . . . . Robots Corrupted 4 | . . . . 4 . Combat Hostiles 4 | . . . . 4 . Parts Fried . | . . . . . . Impact Corruptions 8 | . . . . 8 . Robots Melted . | . . . . . . Combat Hostiles . | . . . . . . Parts Melted . | . . . . . . Heat Transferred . | . . . . . . Parts Sabotaged . | . . . . . . Parts Stolen . | . . . . . . Parts Stripped . | . . . . . . Power Chain Reactions . | . . . . . . Alert | -11 -10 -9 -9 -8 -8 ------- Run | Yrd Mat Mat Min Mat Sto Maximum Alert Level . | . . . . . . Low Security (%) 100 | 100 100 100 100 100 100 Level 1 . | . . . . . . Level 2 . | . . . . . . Level 3 . | . . . . . . Level 4 . | . . . . . . Level 5 . | . . . . . . High Security . | . . . . . . Max Security . | . . . . . . Peak Influence 73 | . 35 16 6 73 28 Initial 18 | . . . 6 . 18 Average 12 | . 8 2 5 21 7 Influence Increases 419 | . 35 76 . 258 50 Destroy 0b10 Robot/C 100 | . . . . 100 . Destroy Leader 20 | . . . . 20 . Successful Hack 56 | . 5 16 . 15 20 Destroy Structure 3 | . . . . 3 . Partial Spotted 75 | . . 30 . 30 15 Lose Combat Pursuer 165 | . 30 30 . 90 15 Influence Decreases 419 | . 35 60 16 213 95 Entered New Map 37 | . . . 10 . 27 Time Decay 322 | . 30 60 6 173 53 Lost Part 60 | . 5 . . 40 15 Squads Dispatched 4 | . 1 2 . . 1 Investigation 3 | . 1 2 . . . Extermination . | . . . . . . Reinforcement 1 | . . . . . 1 Assault . | . . . . . . Garrison . | . . . . . . Intercept . | . . . . . . Searches Triggered . | . . . . . . Construction Impeded . | . . . . . . Haulers Reinforced . | . . . . . . Active Scanning Responses . | . . . . . . Cargo Convoy Interrupts . | . . . . . . Stealth | -11 -10 -9 -9 -8 -8 --------- Run | Yrd Mat Mat Min Mat Sto Distress Signals 3 | . 1 . . 2 . Communications Jammed . | . . . . . . Distress Signals . | . . . . . . Times Spotted 66 | . 12 16 7 20 11 Peak Tracking Total 14 | . 10 14 7 8 9 Tactical Retreats 7 | . 1 2 . 3 1 Traps | -11 -10 -9 -9 -8 -8 ------- Run | Yrd Mat Mat Min Mat Sto Traps Triggered 3 | . 1 1 . . 1 Indirectly . | . . . . . . Trap Hack Attempts . | . . . . . . Triggered . | . . . . . . Disarmed . | . . . . . . Reprogrammed . | . . . . . . Reused . | . . . . . . Traps Extracted . | . . . . . . Installed . | . . . . . . Triggered . | . . . . . . Machines | -11 -10 -9 -9 -8 -8 ---------- Run | Yrd Mat Mat Min Mat Sto Machines Disabled . | . . . . . . Max in Single Turn . | . . . . . . Machines Repaired . | . . . . . . Machines Dismantled . | . . . . . . Machines Sabotaged . | . . . . . . Overloaded Fab Kills . | . . . . . . Hacking | -11 -10 -9 -9 -8 -8 --------- Run | Yrd Mat Mat Min Mat Sto Machines Accessed 15 | . 1 6 . 4 4 Terminals 13 | . 1 5 . 4 3 Fabricators . | . . . . . . Repair Stations 2 | . . 1 . . 1 Recycling Units . | . . . . . . Scanalyzers . | . . . . . . Garrison Access . | . . . . . . Total Hacks 40 | . 3 14 . 13 10 Successful 16 | . 1 5 . 5 5 Failed 24 | . 2 9 . 8 5 Catastrophic 7 | . 1 4 . 2 . Database Lockouts . | . . . . . . Manual 23 | . 1 7 . 12 3 Terminals 35 | . 3 12 . 13 7 Fabricators . | . . . . . . Repair Stations 5 | . . 2 . . 3 Recycling Units . | . . . . . . Scanalyzers . | . . . . . . Garrison Access . | . . . . . . Terminal Hacks 10 | . . 4 . 3 3 Record 1 | . . 1 . . . Robot Analysis 1 | . . . . 1 . Prototype ID Bank 1 | . . . . . 1 Open Door 1 | . . . . . 1 Branch Access Points 2 | . . 1 . 1 . Terminal Index 1 | . . . . . 1 Locate Traps 1 | . . . . 1 . Recall Investigation 1 | . . 1 . . . Zone Layout 1 | . . 1 . . . Fabricator Hacks . | . . . . . . Repair Station Hacks 1 | . . . . . 1 Refit 1 | . . . . . 1 Recycling Unit Hacks . | . . . . . . Scanalyzer . | . . . . . . Garrison Access Hacks . | . . . . . . Unauthorized Hacks 5 | . 1 1 . 2 1 Terminals 5 | . 1 1 . 2 1 Botnet 5 | . 1 1 . 2 1 Fabricators . | . . . . . . Repair Stations . | . . . . . . Recycling Units . | . . . . . . Scanalyzers . | . . . . . . Garrison Access . | . . . . . . Data Cores Recovered . | . . . . . . Used . | . . . . . . Hacking Detections 14 | . 1 6 . 4 3 Full Trace Events 2 | . 1 1 . . . Feedback Events . | . . . . . . Feedback Blocked . | . . . . . . Robot Schematics Acquired . | . . . . . . Robots Built . | . . . . . . Authchips . | . . . . . . Time . | . . . . . . Total Robot Build Rating . | . . . . . . Part Schematics Acquired . | . . . . . . Parts Built . | . . . . . . Authchips . | . . . . . . Time . | . . . . . . Total Part Build Rating . | . . . . . . Part Studies Acquired . | . . . . . . Parts Repaired . | . . . . . . Time . | . . . . . . Parts Recycled . | . . . . . . Recycled Matter . | . . . . . . Retrieved Matter . | . . . . . . Retrieved Components . | . . . . . . Parts Scanalyzed . | . . . . . . Part Schematics Acquired . | . . . . . . Parts Damaged . | . . . . . . Bothacking | -11 -10 -9 -9 -8 -8 ------------ Run | Yrd Mat Mat Min Mat Sto Used RIF Installer . | . . . . . . Robots Hacked 2 | . . . . 2 . Non-combat 1 | . . . . 1 . Combat 1 | . . . . 1 . Robot Hacks Applied 2 | . . . . 2 . parse_system 1 | . . . . 1 . no_distress 1 | . . . . 1 . Relay Couplers Released . | . . . . . . Fabnet Peak Effective % . | . . . . . . Robots Rewired . | . . . . . . Allies Hacked . | . . . . . . Hacks Repelled . | . . . . . . Allies | -11 -10 -9 -9 -8 -8 -------- Run | Yrd Mat Mat Min Mat Sto Total Allies . | . . . . . . Largest Group . | . . . . . . Highest-Rated Group . | . . . . . . Highest-Rated Ally . | . . . . . . Total Orders . | . . . . . . Ally Attacks . | . . . . . . Total Damage . | . . . . . . Kills . | . . . . . . Allies Corrupted . | . . . . . . Allies Melted . | . . . . . . Intel | -11 -10 -9 -9 -8 -8 ------- Run | Yrd Mat Mat Min Mat Sto Active Infowar (turns) . | . . . . . . Robot Analysis Total 1 | . . . . 1 . Derelict Logs Recovered . | . . . . . . Drone Launches . | . . . . . . Drone Recoveries . | . . . . . . Exploration | -11 -10 -9 -9 -8 -8 ------------- Run | Yrd Mat Mat Min Mat Sto Turns Passed 1164 | 52 159 253 22 497 181 Spaces Moved 1393 | 41 154 441 32 532 193 Core 1061 | 6 99 441 32 441 42 Treads . | . . . . . . Legs 181 | 35 55 . . 91 . Wheels . | . . . . . . Hover 151 | . . . . . 151 Flight . | . . . . . . Fastest Speed 50 | 50 50 50 50 50 50 Average Speed 64 | 112 75 50 50 67 73 Slowest Speed 180 | 150 120 50 50 180 100 Overloaded Moves . | . . . . . . Propulsion Burnouts . | . . . . . . Robots Hopped . | . . . . . . Potential Cave-ins . | . . . . . . Cave-ins Triggered . | . . . . . . Exploration Rate (%) 28 | 4 41 34 10 42 40 Regions Visited 5 Branch Regions 2 Pre-discovered Areas . | . . . . . . Known Exits Taken 4 | . 1 1 1 1 . Unknown Exits Taken 1 | 1 . . . . . Scrap Searched . | . . . . . . Spaces Dug 3 | . . . . 3 . Terrain Destroyed 3 | . . . . 3 . Melee 3 | . . . . 3 . Projectile . | . . . . . . AOE . | . . . . . . Terrain Rammed . | . . . . . . Walls Destroyed . | . . . . . . Machines Disabled . | . . . . . . Actions | -11 -10 -9 -9 -8 -8 --------- Run | Yrd Mat Mat Min Mat Sto Total 1601 | 45 191 473 37 621 234 Wait 109 | . 3 30 . 39 37 Move 1388 | 40 153 440 31 531 193 Hop . | . . . . . . Pick Up 7 | 1 2 . . 4 . Fast Attach 10 | 4 2 . . 4 . Attach 9 | . 1 2 . 5 1 Detach 8 | . 2 1 . 4 1 Swap . | . . . . . . Drop 4 | . . . . 2 2 Fire . | . . . . . . Melee 32 | . . . . 32 . Ram 6 | . . . 6 . . Kick 28 | . 28 . . . . Crush . | . . . . . . Escape Stasis . | . . . . . . Rewire . | . . . . . . Trap . | . . . . . . Miscellaneous . | . . . . . . Route ------- -11/Scrapyard -10/Materials -9/Materials -9/Mines -8/Materials (discovered 2 exits: *Sto x2) -8/Storage History --------- Turn | Location | Event 12 | -11/Scrapyard | Discovered new exit (range 15) 53 | -11/Scrapyard | Entered Materials 203 | -10/Materials | Discovered new exit (range 16) 212 | -10/Materials | Identified exit to Materials 212 | -10/Materials | Entered another Materials area 212 | -9/Materials | Evolved 2 slots: Utility x2 306 | -9/Materials | Build established: Mutant 386 | -9/Materials | Discovered new exit (range 7) 393 | -9/Materials | Identified exit to Mines 465 | -9/Materials | Entered Mines 478 | -9/Mines | Discovered new exit (range 10) 487 | -9/Mines | Identified exit to Materials 487 | -9/Mines | Entered Materials 487 | -8/Materials | Evolved 2 slots: Utility x2 487 | -8/Materials | Discovered new exit (range 8) 496 | -8/Materials | Identified exit to Storage 749 | -8/Materials | Lost 3 parts (1n1u1w) 959 | -8/Materials | Core integrity fell below 50% 984 | -8/Materials | Entered Storage 1153 | -8/Storage | Core integrity fell below 20% 1165 | -8/Storage | Destroyed by Y-45 Defender with Heavy Assault Rifle Last Messages --------------- >>Trojan(Botnet) Trojan loaded successfully. Testing... Terminal linked with 0 systems. Awaiting botnet instructions. 01082_ Connecting with Terminal... 01083_ K-01 Serf cleans the Component Storage. 01091_ K-01 Serf collects debris. 01093_ K-01 Serf cleans the Component Storage. 01097_ K-01 Serf collects debris. 01098_ K-01 Serf cleans the Component Storage. 01114_ System corrupted: Energy discharge (-25). 01116_ K-01 Serf cleans the Component Storage. 01149_ K-01 Serf collects debris. 01150_ Critical hit (Burn: +37). 01150_ K-01 Serf collects debris. 01152_ Backup Propulsion I destroyed. 01153_ FJDC#L%9VSCIUV5MVBMIMMYY6PBDCQA<8 W=KD/J 01155_ K-01 Serf collects debris. 01158_ Ion Engine destroyed. Map ----- +----------------------------------------------------+ | ???????????????????????????????????????????????? | | ???????????????????????????????????????????????? | | ???????????????????????????????????????????????? | | ???????????????????????????????????????????????? | | ???????????????????????????????????????????????? | | ???????????????????????????????????????????????? | | ???????????????????????????????????????????????? | | ???????????????????????????????????????????????? | | ???????????????????????????????????????????????? | | ???????????????????????????????????????????????? | | ??????????????????????????+????????????????????? | | ??? ?"Y"?????????????????? ????????????????????? | | ??# #" "###??????????????? ????????????????????? | | ??# #??????????????? #???????????????????? | | ??+ +??????????????? #???????????????????? | | ??# #?????????????## ##??????????????????? | | ??# #####????????? #??????????????????? | | ??# """ ###????### ???????????????????? | | #?# """ # ???? # Y ???????????????????? | | #?# """ # "???? # ???????????????????? | | ### """ # "???? ## #???????????????????? | | ##T """ ^ ^# "????" ## #???????????????????? | | T## + ""???" ## #???????????????????? | | ### [ # ""??" ## #???????????????????? | | #?# # """" ## #???????????????????? | | ### # + @ #???????????????????? | | # ## #???????????????????? | | ###+##/#### ########### #???????????????????? | | ? #??# #?????????# #???????????????????? | | # #??# #?????????# #???????????????????? | | # ! #??# #?????????# ???????????????????? | | # ![#??# #?????????# ??????????????????? | | # ]#??# #?????????#####??????????????????? | | # = #??# #????????????????????????????????? | | ########### #????????????????????????????????? | | # ## #????????????????????????????????? | | # """"" ## ##???????????????????????????????? | | # """"" # #???????????????????????????????? | | # """"" # #???????????????????????????????? | | # + T #???????????????????????????????? | | # """"" # #???????????????????????????????? | | # """"" # #???????????????????????????????? | | # """"" #######???????????????????????????????? | | # #?????????????????????????????????????? | | ###" "####?????????????????????????????????????? | | ??#"R"#????????????????????????????????????????? | | ###"""#????????????????????????????????????????? | | # ######???????????????????????????????????????? | | #???????????????????????????????????????? | | """ #???????????????????????????????????????? | +----------------------------------------------------+ Best States ------------- Heat Dissipation 31 Energy Generation 14 Energy Capacity 275 Matter Stores 300 Matter Capacity 300 Sight Range 16 Terrain Scan Density 10 Armor Coverage 150 Evasion (%) 57 Item Schematics ----------------- None Robot Schematics ------------------ None Fabricated ------------ Nothing Repaired ---------- Nothing Studied --------- None Alien Tech Used ----------------- None Achievements -------------- None Challenges ------------ None Game ------ Seed SensorTacticalAssimilator Manual? 0 Play Time 00:25:08 Cumulative 94.5 hours Start 2026.08.23 @ 14:14:34 End 2026.08.23 @ 14:38:56 Sessions 1 Manual Loads 0 Difficulty Rogue Special Mode None Game No. 64 Rogue 64 Adventurer 0 Explorer 0 Win Type - Total 0 Types 0/0/0/0/0/0/0/0/0/0 Lore% 34 Gallery% 40 Achievement% 31 Wizard Run 0 Options --------- Layout 0 ASCII 0 Keyboard 1 Movement Vi Keybinds 0 Fullscreen 2 Font 18/SmallcapsGlow Map View 76x50 Zoom Use 0% Tactical HUD 1 Map Filters NONE Filters NONE Steam 1 RUN: 18e6718c-3ea6-4bca-9be6-34f356090110